[Event "4NCL Div 2 2024-25"]
[Site "England"]
[Date "2024.11.24"]
[Round "2.36"]
[White "Webb, Richard M"]
[Black "Alizada, Eldar"]
[Result "1/2-1/2"]
[Annotator "RC"]
[ECO "D02"]
[WhiteElo "2172"]
[BlackElo "1998"]
[PlyCount "36"]
[EventDate "2024.11.23"]
[EventType "team-tourn"]
[EventCountry "ENG"]
[SourceTitle "playchess.com"]
[Source "ChessBase"]
[SourceQuality "1"]
[TimeControl "40/6000+30:3000+30"]

1. Nf3 {[%emt 0:10:03]} d5 {[%emt 0:10:29]} 2. g3 {[%emt 0:00:15]} Nf6 {[%emt 0:00:20]} 3. Bg2 {[%emt 0:00:06]} e6 {[%emt 0:00:25]} 4. O-O {[%emt 0:00:23]} Be7 {[%emt 0:00:36]} 5. b3 {[%emt 0:04:32]} O-O {[%emt 0:01:14]} 6. Bb2 {[%emt 0:00:06]} c5 {[%emt 0:01:11]} 7. d4 {[%emt 0:02:04]} Nc6 {[%emt 0:07:40]} 8. Nbd2 {[%emt 0:00:38]} b5 {[%emt 0:07:53]} 9. dxc5 {[%emt 0:20:25]} Bxc5 {[%emt 0:02:08]} 10. c4 {[%emt 0:02:01]} bxc4 {[%emt 0:07:48]} 11. bxc4 {[%emt 0:00:11]} Be7 {[%emt 0:19:57]} 12. Rc1 {[%emt 0:07:44]} Bb7 {[%emt 0:02:04]} 13. cxd5 {[%emt 0:11:17]} Nxd5 {[%emt 0:01:18]} 14. Nc4 {[%emt 0:00:53]} Na5 {[%emt 0:07:36]} 15. Qd2 {[%emt 0:03:32]} Nxc4 {[%emt 0:05:15]} 16. Rxc4 {[%emt 0:00:06]} Rc8 {[%emt 0:03:16]} 17. Rxc8 {[%emt 0:04:26]} Qxc8 {[%emt 0:00:11]} 18. Rc1 {[%emt 0:00:16]} Qa8 {[%emt 0:01:01]} 1/2-1/2

[Event "4NCL Div 2 2024-25"]
[Site "England"]
[Date "2024.11.24"]
[Round "2.37"]
[White "Nicholas, Koichi B"]
[Black "Thompson, Ian D"]
[Result "0-1"]
[Annotator "NA RC"]
[ECO "C08"]
[WhiteElo "2089"]
[BlackElo "2010"]
[PlyCount "92"]
[EventDate "2024.11.23"]
[EventType "team-tourn"]
[EventCountry "ENG"]
[SourceTitle "playchess.com"]
[Source "ChessBase"]
[SourceQuality "1"]
[TimeControl "40/6000+30:3000+30"]

1. e4 {[%emt 0:10:05]} e6 {[%emt 0:10:05]} 2. d4 {[%emt 0:00:07]} d5 {[%emt 0:00:03]} 3. Nd2 {[%emt 0:00:38]} c5 {[%emt 0:01:40]} 4. dxc5 {[%emt 0:06:46]} Bxc5 {[%emt 0:01:49]} 5. Nb3 {[%emt 0:00:49]} Bb6 {[%emt 0:01:57]} 6. exd5 {[%emt 0:01:52]} exd5 {[%emt 0:00:30]} 7. Nf3 {[%emt 0:01:32]} Nf6 {[%emt 0:00:33]} 8. Bb5+ {[%emt 0:14:34]} Nc6 {[%emt 0:01:29]} 9. O-O {[%emt 0:03:16]} O-O {[%emt 0:00:15]} 10. Bg5 {[%emt 0:00:50]} Bg4 {[%emt 0:02:07]} 11. h3 {[%emt 0:09:56]} Bh5 {[%emt 0:01:40]} 12. c3 {[%emt 0:00:49]} Qd6 {[%emt 0:07:18]} 13. Bxf6 {[%emt 0:18:36]} gxf6 {[%emt 0:00:21]} 14. Be2 {[%emt 0:00:46]} Ne5 {[%emt 0:12:02]} 15. Nbd4 {[%emt 0:06:12]} Nxf3+ {[%emt 0:07:26]} 16. Bxf3 {[%emt 0:01:28]} Bxd4 {[%emt 0:00:57]} 17. cxd4 {[%emt 0:05:57]} Bxf3 {[%emt 0:01:03]} 18. Qxf3 {[%emt 0:00:31]} Rfe8 {[%emt 0:02:42]} 19. Rad1 {[%emt 0:09:41]} Re4 {[%emt 0:01:32]} 20. Rd3 {[%emt 0:01:15]} Rae8 {[%emt 0:02:05]} 21. Qh5 {[%emt 0:02:54]} Qe6 {[%emt 0:07:02]} 22. Qh6 {[%emt 0:01:51]} Kh8 {[%emt 0:00:38]} 23. Rf3 {[%emt 0:00:44]} f5 {[%emt 0:02:30]} 24. Qh5 {[%emt 0:02:30]} Rxd4 {[%emt 0:08:54]} 25. Rxf5 {[%emt 0:03:37]} Re7 {[%emt 0:12:21]} 26. Rc1 {[%emt 0:02:28]} Rc4 {[%emt 0:05:02]} 27. Rd1 {[%emt 0:01:28]} Qe2 {[%emt 0:00:30]} 28. Rdxd5 {[%emt 0:01:10]} Rc1+ {[%emt 0:02:07]} 29. Kh2 {[%emt 0:00:09]} Qxh5 {[%emt 0:00:11]} 30. Rxh5 {[%emt 0:00:04]} Rc2 {[%emt 0:00:07]} 31. Rd8+ {[%emt 0:02:52]} Kg7 {[%emt 0:00:01]} 32. Rg5+ {[%emt 0:00:28]} Kf6 {[%emt 0:00:53]} 33. f4 {[%emt 0:00:17]} Rxb2 {[%emt 0:01:36]} 34. Rh8 {[%emt 0:00:39]} Re4 {[%emt 0:01:41]} 35. Rg4 {[%emt 0:00:14]} Rxa2 {[%emt 0:01:44]} 36. Rxh7 {[%emt 0:00:04]} b5 {[%emt 0:01:15]} 37. Rh6+ {[%emt 0:00:45]} Ke7 {[%emt 0:00:27]} 38. Rh5 {[%emt 0:00:19]} a6 {[%emt 0:01:20]} 39. Rf5 {[%emt 0:01:06]} Re6 {[%emt 0:02:28]} 40. h4 {[%emt 0:00:36]} b4 {[%emt 0:01:15]} 41. Rg3 {[%emt 0:26:07]} Rb6 {[%emt 0:23:05]} 42. Re5+ {[%emt 0:15:23]} Kf8 {[%emt 0:01:12]} 43. f5 {[%emt 0:01:10]} b3 {[%emt 0:06:04]} 44. Ree3 {[%emt 0:03:04]} Ra3 {[%emt 0:00:29]} 45. Re1 {[%emt 0:01:50]} Ra4 {[%emt 0:02:15]} 46. h5 {[%emt 0:03:08]} b2 {[%emt 0:01:07]} 0-1

[Event "4NCL Div 2 2024-25"]
[Site "England"]
[Date "2024.11.24"]
[Round "2.38"]
[White "Purdon, Colin"]
[Black "Wilks, Simon"]
[Result "1/2-1/2"]
[Annotator "NA RC"]
[ECO "E11"]
[WhiteElo "1957"]
[BlackElo "2078"]
[PlyCount "43"]
[EventDate "2024.11.23"]
[EventType "team-tourn"]
[EventCountry "ENG"]
[SourceTitle "playchess.com"]
[Source "ChessBase"]
[SourceQuality "1"]
[TimeControl "40/6000+30:3000+30"]

1. d4 {[%emt 0:10:03]} Nf6 {[%emt 0:20:10]} 2. c4 {[%emt 0:00:14]} e6 {[%emt 0:00:03]} 3. g3 {[%emt 0:00:10]} Bb4+ {[%emt 0:00:19]} 4. Nd2 {[%emt 0:01:02]} O-O {[%emt 0:02:37]} 5. Ngf3 {[%emt 0:00:57]} d5 {[%emt 0:03:58]} 6. a3 {[%emt 0:05:55]} Be7 {[%emt 0:03:02]} 7. Bg2 {[%emt 0:01:24]} b6 {[%emt 0:04:31]} 8. O-O {[%emt 0:03:15]} Bb7 {[%emt 0:04:09]} 9. Ne5 {[%emt 0:05:20]} c5 {[%emt 0:10:33]} 10. dxc5 {[%emt 0:07:37]} Bxc5 {[%emt 0:02:06]} 11. Nd3 {[%emt 0:01:13]} Be7 {[%emt 0:07:17]} 12. b4 {[%emt 0:02:11]} Qc8 {[%emt 0:21:44]} 13. Bb2 {[%emt 0:07:03]} dxc4 {[%emt 0:02:35]} 14. Bxb7 {[%emt 0:00:18]} Qxb7 {[%emt 0:00:02]} 15. Nxc4 {[%emt 0:00:16]} Rd8 {[%emt 0:03:47]} 16. Qb3 {[%emt 0:04:02]} Nc6 {[%emt 0:02:59]} 17. Nde5 {[%emt 0:13:22]} Nd4 {[%emt 0:08:24]} 18. Bxd4 {[%emt 0:05:49]} Rxd4 {[%emt 0:00:13]} 19. Rfd1 {[%emt 0:01:14]} Rad8 {[%emt 0:04:07]} 20. Rxd4 {[%emt 0:00:58]} Rxd4 {[%emt 0:00:04]} 21. Rd1 {[%emt 0:00:37]} Rd5 {[%emt 0:01:13]} 22. Rxd5 {[%emt 0:01:20]} 1/2-1/2

[Event "4NCL Div 2 2024-25"]
[Site "England"]
[Date "2024.11.24"]
[Round "2.39"]
[White "Shepherd, Tom"]
[Black "Tart, Peter K"]
[Result "0-1"]
[Annotator "NA RC"]
[ECO "A96"]
[WhiteElo "1905"]
[BlackElo "1903"]
[PlyCount "84"]
[EventDate "2024.11.23"]
[EventType "team-tourn"]
[EventCountry "ENG"]
[SourceTitle "playchess.com"]
[Source "ChessBase"]
[SourceQuality "1"]
[TimeControl "40/6000+30:3000+30"]

1. d4 {[%emt 0:10:01]} f5 {[%emt 0:10:06]} 2. g3 {[%emt 0:00:04]} Nf6 {[%emt 0:00:13]} 3. Bg2 {[%emt 0:00:05]} e6 {[%emt 0:00:30]} 4. Nf3 {[%emt 0:00:06]} Be7 {[%emt 0:00:16]} 5. O-O {[%emt 0:00:06]} O-O {[%emt 0:00:08]} 6. c4 {[%emt 0:00:02]} d6 {[%emt 0:00:08]} 7. b4 {[%emt 0:00:04]} Ne4 {[%emt 0:06:18]} 8. Bb2 {[%emt 0:04:34]} Bf6 {[%emt 0:06:13]} 9. Qb3 {[%emt 0:01:35]} a5 {[%emt 0:07:16]} 10. b5 {[%emt 0:03:02]} a4 {[%emt 0:01:39]} 11. Qb4 {[%emt 0:09:11]} Nd7 {[%emt 0:05:37]} 12. Rd1 {[%emt 0:05:47]} Qe8 {[%emt 0:02:45]} 13. Nc3 {[%emt 0:12:12]} Nxc3 {[%emt 0:13:20]} 14. Qxc3 {[%emt 0:06:31]} e5 {[%emt 0:06:11]} 15. dxe5 {[%emt 0:00:10]} dxe5 {[%emt 0:02:02]} 16. e4 {[%emt 0:05:57]} Nc5 {[%emt 0:08:47]} 17. Nxe5 {[%emt 0:17:47]} a3 {[%emt 0:00:21]} 18. Bxa3 {[%emt 0:02:25]} Bxe5 {[%emt 0:00:14]} 19. Qe3 {[%emt 0:01:29]} Nxe4 {[%emt 0:05:07]} 20. Bxf8 {[%emt 0:02:14]} Bxa1 {[%emt 0:00:46]} 21. Bxe4 {[%emt 0:00:32]} Qxe4 {[%emt 0:04:13]} 22. Qxe4 {[%emt 0:01:04]} fxe4 {[%emt 0:00:04]} 23. Rd8 {[%emt 0:00:05]} Kf7 {[%emt 0:00:56]} 24. Bb4 {[%emt 0:00:50]} b6 {[%emt 0:02:59]} 25. c5 {[%emt 0:01:56]} Bf6 {[%emt 0:04:03]} 26. Rh8 {[%emt 0:00:40]} bxc5 {[%emt 0:00:21]} 27. Bxc5 {[%emt 0:00:05]} Bb7 {[%emt 0:00:05]} 28. Rxa8 {[%emt 0:00:25]} Bxa8 {[%emt 0:00:03]} 29. a4 {[%emt 0:00:56]} Ke6 {[%emt 0:00:16]} 30. b6 {[%emt 0:00:43]} cxb6 {[%emt 0:00:41]} 31. Bxb6 {[%emt 0:00:07]} Kd6 {[%emt 0:00:19]} 32. Kg2 {[%emt 0:00:48]} Kc6 {[%emt 0:00:53]} 33. a5 {[%emt 0:00:14]} Kb5 {[%emt 0:00:05]} 34. Kh3 {[%emt 0:00:35]} Bc3 {[%emt 0:02:43]} 35. Kg4 {[%emt 0:00:14]} Bxa5 {[%emt 0:00:38]} 36. Bd4 {[%emt 0:00:07]} Bd2 {[%emt 0:02:21]} 37. Bxg7 {[%emt 0:00:25]} Kc4 {[%emt 0:00:17]} 38. Kf5 {[%emt 0:02:55]} Kd5 {[%emt 0:01:02]} 39. h4 {[%emt 0:01:45]} Bc6 {[%emt 0:01:24]} 40. Bb2 {[%emt 0:01:28]} Bd7+ {[%emt 0:01:21]} 41. Kf6 {[%emt 0:50:11]} h5 {[%emt 0:50:16]} 42. Kg6 {[%emt 0:01:12]} Bg4 {[%emt 0:00:08]} 0-1

[Event "4NCL Div 2 2024-25"]
[Site "England"]
[Date "2024.11.24"]
[Round "2.40"]
[White "Shek, Daniel"]
[Black "Handley, Michael R"]
[Result "1-0"]
[Annotator "NA RC"]
[ECO "A28"]
[WhiteElo "1873"]
[BlackElo "1993"]
[PlyCount "79"]
[EventDate "2024.11.23"]
[EventType "team-tourn"]
[EventCountry "ENG"]
[SourceTitle "playchess.com"]
[Source "ChessBase"]
[SourceQuality "1"]
[TimeControl "40/6000+30:3000+30"]

1. c4 {[%emt 0:10:02]} e5 {[%emt 0:26:20]} 2. Nc3 {[%emt 0:00:34]} Nf6 {[%emt 0:00:09]} 3. Nf3 {[%emt 0:00:19]} Nc6 {[%emt 0:01:02]} 4. e4 {[%emt 0:00:27]} Bb4 {[%emt 0:01:24]} 5. d3 {[%emt 0:03:39]} Bxc3+ {[%emt 0:00:36]} 6. bxc3 {[%emt 0:00:08]} d6 {[%emt 0:00:04]} 7. Be2 {[%emt 0:00:34]} h6 {[%emt 0:00:32]} 8. Ba3 {[%emt 0:01:52]} b6 {[%emt 0:00:06]} 9. Qc2 {[%emt 0:02:10]} O-O {[%emt 0:00:11]} 10. O-O {[%emt 0:00:32]} Re8 {[%emt 0:02:47]} 11. Ne1 {[%emt 0:07:49]} Ne7 {[%emt 0:04:28]} 12. d4 {[%emt 0:04:44]} Nc6 {[%emt 0:03:10]} 13. d5 {[%emt 0:09:08]} Na5 {[%emt 0:00:05]} 14. Bd3 {[%emt 0:02:52]} Ba6 {[%emt 0:03:06]} 15. Qe2 {[%emt 0:01:22]} c6 {[%emt 0:18:29]} 16. Nc2 {[%emt 0:03:15]} cxd5 {[%emt 0:08:33]} 17. cxd5 {[%emt 0:00:57]} Bxd3 {[%emt 0:00:06]} 18. Qxd3 {[%emt 0:00:08]} Rc8 {[%emt 0:00:13]} 19. Ne3 {[%emt 0:04:21]} Nb7 {[%emt 0:06:26]} 20. Rab1 {[%emt 0:07:36]} Nc5 {[%emt 0:01:35]} 21. Bxc5 {[%emt 0:00:07]} Rxc5 {[%emt 0:00:03]} 22. f3 {[%emt 0:01:35]} g6 {[%emt 0:03:33]} 23. Rb3 {[%emt 0:03:15]} Kg7 {[%emt 0:04:18]} 24. Nc2 {[%emt 0:03:05]} Nd7 {[%emt 0:04:04]} 25. Nb4 {[%emt 0:04:32]} Qc8 {[%emt 0:00:17]} 26. Nc6 {[%emt 0:01:39]} Rxc6 {[%emt 0:02:20]} 27. dxc6 {[%emt 0:00:18]} Nc5 {[%emt 0:00:01]} 28. Qd5 {[%emt 0:04:41]} Nxb3 {[%emt 0:00:22]} 29. axb3 {[%emt 0:00:07]} Qc7 {[%emt 0:04:37]} 30. Rd1 {[%emt 0:01:58]} Rd8 {[%emt 0:00:04]} 31. b4 {[%emt 0:02:52]} a6 {[%emt 0:00:31]} 32. c4 {[%emt 0:01:09]} Kf8 {[%emt 0:01:31]} 33. b5 {[%emt 0:07:04]} a5 {[%emt 0:00:03]} 34. Qd2 {[%emt 0:02:00]} Kg7 {[%emt 0:00:11]} 35. f4 {[%emt 0:02:03]} f6 {[%emt 0:02:15]} 36. fxe5 {[%emt 0:00:44]} fxe5 {[%emt 0:00:01]} 37. Qd5 {[%emt 0:01:00]} a4 {[%emt 0:05:25]} 38. Qe6 {[%emt 0:06:55]} Qf7 {[%emt 0:03:22]} 39. Qxf7+ {[%emt 0:03:51]} Kxf7 {[%emt 0:00:01]} 40. c5 {[%emt 0:00:47]} 1-0